bitfinex-derivatives/quotes_ETHF0:USTF0_20250426
["timestamp","ask_amount","ask_price","bid_price","bid_amount"]
[1745632805573,8.12909,1808.2,1808.0,1.10557]
[1745632805771,7.0236,1808.2,1808.1,1.10555]
[1745632806272,3.2078,1808.5,1808.4,1.10537]
[1745632806578,1.6514,1808.8,1808.7,1.10519]
[1745632806774,4.783,1808.9,1808.8,1.10513]
[1745632807073,4.783,1808.9,1808.7,1.10515]
[1745632807277,11.19611,1808.9,1808.6,4.5449]
[1745632807477,1.5752,1808.8,1808.7,1.10519]
[1745632807774,2.68033,1808.8,1808.6,6.48343]
[1745632808278,1.10519,1808.7,1808.6,5.3782]
[1745632808475,1.10525,1808.6,1808.5,3.709]
[1745632808670,1.91095,1808.6,1808.5,3.709]
[1745632808871,3.48615,1808.6,1808.5,3.709]
[1745632809170,8.79415,1808.6,1808.5,3.709]
[1745632809571,5.308,1808.6,1808.5,4.81431]
[1745632809875,5.308,1808.6,1808.5,5.61111]
[1745632810182,1.643,1808.9,1808.8,1.10513]
[1745632810781,1.643,1808.9,1808.8,1.90193]
[1745632811272,3.2078,1809.2,1808.8,0.7968]
[1745632811468,3.2078,1809.2,1808.9,3.2078]
[1745632811669,4.3127,1809.2,1809.1,1.10494]
[1745632811866,4.8508,1809.2,1809.1,1.10494]
[1745632812171,10.1588,1809.2,1809.1,1.10494]
[1745632812779,5.308,1809.2,1809.1,1.96444]
[1745632813375,3.54662,1809.5,1809.3,1.1048]
[1745632813875,4.0056,1809.8,1809.3,3.2078]
[1745632814177,1.638,1809.7,1809.6,1.10464]
[1745632814383,3.2078,1810.1,1809.9,1.10441]
[1745632814574,5.95014,1810.1,1809.9,1.10441]
[1745632814874,5.95014,1810.1,1809.7,7.7753]
[1745632814875,5.95016,1810.1,1809.7,7.7753]
[1745632815074,1.1044,1810.0,1809.7,8.87982]
[1745632815276,1.638,1809.9,1809.8,1.10451]
[1745632815478,1.638,1809.9,1809.7,7.7753]
[1745632815675,8.5158,1810.1,1809.7,7.7753]
[1745632815973,11.33504,1810.1,1809.9,1.10443]
[1745632816376,1.10439,1810.0,1809.8,1.93288]
[1745632816567,1.7149,1810.0,1809.9,1.10445]
[1745632816966,2.8193,1810.0,1809.8,1.93288]
[1745632817172,1.7149,1810.0,1809.8,1.93288]
[1745632817371,2.8193,1810.0,1809.9,1.5984]
[1745632818275,8.1273,1810.0,1809.9,1.5984]
[1745632818976,5.308,1810.0,1809.9,2.70285]
[1745632819477,10.308,1810.0,1809.5,3.2078]
[1745632819680,1.10476,1809.4,1809.3,5.37]
[1745632819973,1.10476,1809.4,1809.3,3.707]
[1745632820177,6.41276,1809.4,1809.3,3.707]
[1745632820376,6.41276,1809.4,1809.0,3.2078]
[1745632820377,10.308,1809.4,1809.0,3.2078]
[1745632820586,1.105,1809.1,1809.0,1.7136]
[1745632821483,8.6204,1809.3,1809.0,2.81857]
[1745632821484,1.10492,1809.2,1809.0,2.81857]
[1745632821777,5.308,1809.3,1809.0,4.9214]
[1745632821980,5.308,1809.3,1809.2,4.31268]
[1745632822183,2.84251,1809.5,1809.3,1.10481]
[1745632822381,2.84251,1809.5,1809.3,2.80421]
[1745632822571,2.84251,1809.5,1809.3,1.6994]
[1745632822776,1.10476,1809.4,1809.3,1.6994]
[1745632823080,2.84256,1809.4,1809.3,1.6994]
[1745632823276,1.7378,1809.4,1809.3,2.80422]
[1745632823478,2.84256,1809.4,1809.3,1.6994]
[1745632823672,2.84256,1809.4,1809.2,8.01964]
[1745632823673,1.7378,1809.4,1809.2,6.9148]
[1745632823978,1.10492,1809.2,1809.0,6.5114]
[1745632824181,1.7378,1809.1,1809.0,6.5114]
[1745632824778,3.62776,1809.3,1809.1,1.1049]
[1745632824982,3.62776,1809.3,1809.0,5.4064]
[1745632824983,1.10488,1809.2,1809.0,6.51136]
[1745632825377,2.76288,1809.2,1809.0,6.51136]
[1745632825581,1.10494,1809.1,1809.0,5.4064]
[1745632825782,2.76294,1809.1,1809.0,5.4064]
[1745632826079,1.658,1809.1,1809.0,6.5114]
[1745632826280,1.89658,1809.2,1809.0,6.51138]
[1745632826584,3.55458,1809.2,1809.0,6.51138]
[1745632826784,3.55458,1809.2,1809.0,6.51137]
[1745632827086,1.10494,1809.1,1809.0,5.4064]
[1745632827288,2.76294,1809.1,1809.0,5.4064]
[1745632827987,1.658,1809.1,1809.0,6.5114]
[1745632828684,2.76294,1809.1,1809.0,6.5114]
[1745632828882,2.76294,1809.1,1809.0,3.707]
[1745632829080,1.658,1809.1,1808.8,1.6066]
[1745632829401,1.10513,1808.8,1808.7,3.2078]
[1745632829780,1.10525,1808.6,1808.5,3.2078]
[1745632830183,1.10531,1808.5,1808.4,3.707]
[1745632830482,1.707,1808.5,1808.2,3.2078]
[1745632830785,1.10543,1808.3,1808.2,3.2078]
[1745632831187,6.41343,1808.3,1808.2,3.2078]
[1745632832183,5.308,1808.3,1808.2,4.31329]
[1745632832583,5.308,1808.3,1808.2,5.96249]
[1745632833488,3.9989174,1808.3,1808.2,10.96249]
[1745632833682,3.9989174,1808.3,1808.2,11.77629]
[1745632834200,4.42049,1808.7,1808.5,1.10526]
[1745632834884,1.6662,1808.7,1808.6,1.10525]
[1745632835787,1.6662,1808.7,1808.5,1.6387]
[1745632835788,1.10525,1808.6,1808.5,1.6387]
[1745632835989,2.77143,1808.7,1808.5,2.74401]
[1745632836186,8.07943,1808.7,1808.5,2.74401]
[1745632837087,6.9138,1808.6,1807.7,3.2078]
[1745632837294,1.10598,1807.4,1807.3,5.94]
[1745632837491,1.1061,1807.2,1807.1,3.2078]
[1745632837794,3.2078,1807.5,1806.9,4.0696]
[1745632837795,2.76496,1807.4,1806.9,4.0696]
[1745632837984,4.40006,1807.4,1806.9,4.0696]
[1745632838291,3.2078,1807.3,1807.0,1.10623]
[1745632838491,2.74122,1807.2,1807.0,1.10623]
[1745632838992,2.74122,1807.2,1806.9,4.31404]
[1745632839291,1.10618,1807.1,1806.9,3.2078]
[1745632839495,1.6351,1807.1,1806.9,4.31407]
[1745632839991,1.6351,1807.1,1806.8,3.707]
[1745632840192,8.04927,1807.1,1806.9,4.31405]
[1745632840392,8.04927,1807.1,1806.8,4.8133]
[1745632840592,6.9431,1807.1,1806.9,1.10629]
[1745632840794,8.04928,1807.1,1806.8,4.81333]
[1745632841290,8.0493,1807.1,1806.8,4.81333]
[1745632841496,6.9431,1807.1,1806.8,3.707]
[1745632841691,5.308,1807.1,1807.0,1.10623]
[1745632842086,5.308,1807.1,1807.0,6.10623]
[1745632842290,1.6811,1807.5,1807.0,10.308]
[1745632842493,1.10602,1807.4,1807.1,1.10615]
[1745632842790,1.10613,1807.2,1807.0,5.308]
[1745632842994,1.6417,1807.1,1807.0,5.308]
[1745632843195,1.6417,1807.1,1806.9,1.10623]
[1745632843590,1.6417,1807.1,1807.0,1.10623]
[1745632843792,3.2078,1807.6,1807.0,3.2078]
[1745632843985,4.8495,1807.6,1807.5,1.10592]
[1745632844195,4.8495,1807.6,1807.4,1.10594]
[1745632844798,4.8495,1807.6,1807.5,1.10592]
[1745632844999,5.95538,1807.6,1807.2,3.2078]
[1745632845299,11.26338,1807.6,1807.4,1.10597]
[1745632845703,10.1575,1807.6,1807.5,1.10592]
[1745632846391,11.26339,1807.6,1807.4,1.10598]
[1745632846788,10.1575,1807.6,1807.5,1.10592]
[1745632847694,11.2634,1807.6,1807.4,1.10596]
[1745632848501,10.1575,1807.6,1807.5,1.10592]
[1745632849900,6.9497,1807.6,1807.5,1.10592]
[1745632850203,1.6417,1807.6,1807.5,1.10592]
[1745632850404,5.308,1807.7,1807.6,1.10586]
[1745632851298,3.2078,1808.1,1807.7,1.1058]
[1745632851604,3.2078,1808.1,1807.7,5.6403]
[1745632851605,5.96615,1808.1,1807.7,5.6403]
[1745632851907,4.8606,1808.1,1808.0,1.10561]
[1745632852301,6.9608,1808.1,1808.0,1.10561]
[1745632853008,6.9608,1808.1,1807.7,5.6403]
[1745632853214,8.06635,1808.1,1808.0,1.10561]
[1745632853505,8.06635,1808.1,1807.8,3.2078]
[1745632854110,2.75835,1808.1,1807.8,3.2078]
[1745632854504,2.75835,1808.1,1808.0,1.10561]
[1745632854899,1.6528,1808.1,1808.0,1.10561]
[1745632855096,6.9608,1808.1,1808.0,1.10561]
[1745632855997,8.06635,1808.1,1808.0,1.10561]
[1745632856407,6.9608,1808.1,1808.0,1.10561]
[1745632857411,8.06635,1808.1,1808.0,1.10561]
[1745632858212,6.9608,1808.1,1808.0,1.10561]
[1745632859112,8.06635,1808.1,1807.9,1.10563]
[1745632859703,8.06635,1808.1,1808.0,1.10561]
[1745632860606,6.9608,1808.1,1808.0,1.10561]
[1745632861517,8.06635,1808.1,1807.9,1.10563]
[1745632861904,8.06635,1808.1,1807.8,2.85049]
[1745632861905,6.9608,1808.1,1807.8,2.85049]
[1745632862112,1.10565,1808.0,1807.9,1.10568]
[1745632862314,1.10565,1808.0,1807.8,1.7448]
[1745632862315,2.68405,1808.0,1807.8,2.85049]
[1745632862612,2.68405,1808.0,1807.9,1.10568]
[1745632863113,7.99205,1808.0,1807.9,1.10568]
[1745632863312,1.1058,1807.7,1807.6,3.2078]
[1745632863507,12.85829,1808.0,1807.6,1.10584]
[1745632863817,12.85829,1808.0,1807.5,1.10588]
[1745632864106,1.10592,1807.5,1807.4,1.6534]
[1745632864308,1.10591,1807.6,1807.4,2.75938]
[1745632864518,1.10592,1807.5,1807.3,8.0218]
[1745632864702,1.6296,1807.5,1807.4,1.10598]
[1745632865107,1.703,1807.7,1807.6,1.10586]
[1745632865311,3.3326,1807.7,1807.6,1.10586]
[1745632866114,9.7464,1807.7,1807.6,1.10586]
[1745632866307,8.6406,1807.7,1807.6,1.10586]
[1745632867113,5.308,1807.7,1807.6,1.10586]
[1745632867417,5.308,1807.7,1807.6,4.82286]
[1745632867608,5.308,1807.7,1807.6,7.38746]
[1745632868107,1.6777,1808.0,1807.9,1.10568]
[1745632868616,1.10568,1807.9,1807.8,1.10569]
[1745632868814,1.6777,1808.0,1807.7,1.746]
[1745632869014,1.6777,1808.0,1807.9,1.10568]
[1745632869213,1.6777,1808.0,1807.8,1.10569]
[1745632869414,2.78335,1808.0,1807.6,5.3235]
[1745632869611,1.10568,1807.9,1807.7,1.746]
[1745632869914,2.7834,1807.9,1807.8,1.10574]
[1745632870120,8.0914,1807.9,1807.7,2.85175]
[1745632870717,6.9857,1807.9,1807.8,1.10574]
[1745632871716,6.9857,1807.9,1807.7,1.746]
[1745632871717,8.09138,1807.9,1807.7,2.85175]
[1745632871919,8.09138,1807.9,1807.8,1.10574]
[1745632872114,8.09138,1807.9,1807.7,2.85175]
[1745632872308,8.09138,1807.9,1807.8,1.10574]
[1745632872921,8.09138,1807.9,1807.7,2.85175]
[1745632873123,2.78338,1807.9,1807.7,2.85175]
[1745632873724,2.78338,1807.9,1807.8,1.10574]
[1745632874124,1.10574,1807.8,1807.6,8.17052]
[1745632874321,1.6699,1807.7,1807.6,8.03062]
[1745632874818,2.7757,1807.7,1807.6,4.82286]
[1745632875019,1.10586,1807.6,1807.5,1.10589]
[1745632875223,2.4965,1807.6,1807.5,1.10592]
[1745632876118,7.8045,1807.6,1807.5,1.10592]
[1745632877219,5.308,1807.6,1807.5,1.10592]
[1745632877427,5.308,1807.6,1807.5,6.44722]
[1745632877615,5.308,1807.6,1807.5,11.44722]
[1745632878227,1.6612,1807.9,1807.8,1.10574]
[1745632878422,2.76688,1807.9,1807.7,1.10575]
[1745632878726,1.10574,1807.8,1807.6,2.4407]
[1745632878921,2.76694,1807.8,1807.7,1.1058]
[1745632879226,1.6612,1807.8,1807.7,1.1058]
[1745632879424,2.76694,1807.8,1807.7,1.1058]
[1745632879625,5.3348,1808.1,1807.6,0.8164]
[1745632879828,1.5835,1808.0,1807.9,1.10568]
[1745632880728,1.5835,1808.0,1807.9,2.78278]
[1745632881114,1.5835,1808.0,1807.8,1.10569]
[1745632881319,1.10573,1807.9,1807.7,1.10574]
[1745632881519,1.5835,1807.8,1807.7,1.10574]
[1745632881726,1.5835,1807.8,1807.7,2.78284]
[1745632882225,2.68924,1807.8,1807.7,1.10574]
[1745632882426,1.5835,1807.8,1807.7,1.10574]
[1745632882826,2.68924,1807.8,1807.7,1.10574]
[1745632883328,7.99724,1807.8,1807.6,3.66171]
[1745632883627,1.6099,1807.7,1807.6,1.10581]
[1745632883816,5.308,1807.8,1807.6,1.10581]
[1745632883817,5.308,1807.8,1807.7,1.1058]
[1745632884322,2.7234,1808.1,1807.7,2.7645]
[1745632884528,1.6178,1808.1,1808.0,1.10561]
[1745632885031,3.2078,1808.3,1808.2,1.10549]
[1745632885232,4.8177,1808.3,1808.2,1.10549]
[1745632885527,0.8088,1808.5,1808.4,1.10537]
[1745632885734,2.75113,1808.7,1808.5,1.10527]
[1745632886228,1.10529,1808.6,1808.4,1.10533]
[1745632886424,1.6459,1808.5,1808.4,1.10533]
[1745632886617,5.308,1808.7,1808.6,1.10525]
[1745632886818,6.9539,1808.7,1808.6,1.10525]
[1745632887026,5.308,1808.7,1808.6,1.10525]
[1745632887220,4.31286,1808.9,1808.7,1.10514]
[1745632887426,5.95879,1808.9,1808.7,1.10516]
[1745632887627,5.95879,1808.9,1808.7,2.70426]
[1745632887833,5.95877,1808.9,1808.7,2.70426]
[1745632888032,2.76323,1808.6,1807.8,2.4578]
[1745632888228,2.449,1808.5,1807.9,3.2078]
[1745632888430,4.0807,1808.8,1808.0,1.5991]
[1745632888724,5.308,1808.9,1808.5,3.2078]
[1745632888932,1.6079,1808.8,1808.7,1.10519]
[1745632889119,1.6079,1808.8,1808.7,2.70359]
[1745632889321,4.31279,1809.1,1808.8,1.1051]
[1745632889527,1.10506,1808.9,1808.7,1.5984]
[1745632889728,1.6079,1808.8,1808.6,4.82224]
[1745632890130,1.6079,1808.8,1808.7,1.10519]
[1745632890329,1.6079,1808.8,1808.7,2.70359]
[1745632890725,2.71304,1808.8,1808.6,4.82223]
[1745632891232,8.80874,1808.8,1808.6,4.82223]
[1745632891930,1.709,1808.7,1808.6,4.82223]
[1745632892133,7.017,1808.7,1808.6,4.82223]
[1745632893833,5.308,1808.7,1808.6,4.82223]
[1745632894133,0.8729,1809.2,1808.6,4.82223]
[1745632894134,2.5103,1809.1,1809.0,1.105]
[1745632894338,2.5103,1809.1,1808.9,1.10502]
[1745632894533,1.7113,1809.0,1808.9,1.10502]
[1745632894736,1.7113,1809.0,1808.9,1.5853]
[1745632895034,1.7113,1809.0,1808.9,2.69036]
[1745632895433,0.8013,1809.1,1809.0,1.105]
[1745632895736,2.5126,1809.1,1809.0,2.6903]
[1745632896233,1.7113,1809.1,1809.0,2.6903]
[1745632896430,9.9191,1809.1,1808.5,9.1478]
[1745632896636,3.2078,1808.9,1808.5,4.7931]
[1745632896937,4.31288,1808.9,1808.7,1.10517]
[1745632897134,2.81643,1808.8,1808.6,2.69051]
[1745632897434,1.7113,1808.7,1808.6,2.69051]
[1745632897941,5.308,1808.9,1808.8,1.10513]
[1745632898233,5.308,1808.9,1808.8,4.31293]
[1745632898628,5.308,1808.9,1808.8,5.97623]
[1745632898829,5.308,1808.9,1808.8,10.97623]
[1745632899028,2.93285,1808.9,1808.8,10.97623]
[1745632899235,3.2078,1809.5,1809.1,2.76234]
[1745632899431,2.4577,1809.6,1809.5,1.1047]
[1745632900139,5.308,1809.6,1809.5,1.1047]
[1745632900636,5.308,1809.6,1809.5,3.859]
[1745632900836,7.98794,1809.6,1809.5,3.859]
[1745632901237,6.8833,1809.6,1809.5,3.859]
[1745632901539,7.98794,1809.6,1809.5,3.859]
[1745632902140,1.10474,1809.5,1809.3,4.96379]
[1745632902342,0.7915,1809.4,1809.3,4.96379]
[1745632902836,2.3668,1809.4,1809.3,4.96379]
[1745632903232,7.6748,1809.4,1809.3,4.96379]
[1745632903543,7.6748,1809.4,1809.3,3.859]
[1745632903841,7.6748,1809.4,1809.3,4.96382]
[1745632904339,8.77956,1809.4,1809.3,3.859]
[1745632905432,7.6748,1809.4,1809.3,4.96382]
[1745632906240,8.77956,1809.4,1809.3,4.96382]
[1745632906542,12.6748,1809.4,1809.1,3.859]
[1745632906745,1.10492,1809.2,1809.1,3.859]
[1745632906942,1.10499,1809.1,1809.0,3.859]
[1745632907139,6.41299,1809.1,1809.0,3.859]
[1745632907545,6.41299,1809.1,1808.8,1.7088]
[1745632907546,1.10506,1808.9,1808.8,3.859]
[1745632907846,4.34684,1809.0,1808.8,4.96413]
[1745632908046,1.6595,1809.0,1808.9,1.10506]
[1745632908243,6.9675,1809.0,1808.9,2.81386]
[1745632908435,8.5498,1809.0,1808.9,2.81386]
[1745632909143,7.7007,1809.0,1808.9,1.7088]
[1745632909343,8.8057,1809.0,1808.9,1.7088]
[1745632909841,5.308,1809.0,1808.9,2.81386]
[1745632910036,5.308,1809.0,1808.9,6.02166]
[1745632910232,1.6747,1809.3,1809.2,1.10488]
[1745632910638,2.77952,1809.3,1809.1,3.858]
[1745632910837,3.3867,1809.3,1809.2,2.78868]
[1745632911240,9.79952,1809.3,1809.2,1.6838]
[1745632911643,1.10488,1809.2,1809.1,3.858]
[1745632911845,6.02468,1809.2,1809.1,3.858]
[1745632912142,5.308,1809.2,1808.9,3.2078]
[1745632912347,5.308,1809.2,1809.0,1.6838]
[1745632912539,5.308,1809.2,1809.1,1.10494]
[1745632913145,7.0185,1809.2,1809.1,1.10494]
[1745632913649,1.10494,1809.1,1809.0,1.6838]
[1745632913852,1.7105,1809.1,1809.0,2.7888]
[1745632914844,5.308,1809.3,1809.2,1.10488]
[1745632914845,7.0185,1809.3,1809.2,1.10488]
[1745632915046,5.308,1809.3,1809.2,1.10488]
[1745632915239,7.0185,1809.3,1809.2,1.10488]
[1745632915641,7.0185,1809.3,1809.2,2.77098]
[1745632917444,7.0185,1809.3,1809.2,1.6661]
[1745632917649,8.12332,1809.3,1809.2,1.6661]
[1745632917846,7.0185,1809.3,1809.2,2.77098]
[1745632918149,8.12332,1809.3,1809.1,4.9629]
[1745632918445,2.79468,1809.2,1809.1,4.9629]
[1745632918947,2.79468,1809.2,1809.1,3.858]
[1745632919253,2.79468,1809.2,1809.0,3.2078]
[1745632919254,1.10494,1809.1,1809.0,3.2078]
[1745632919446,1.10502,1809.0,1808.8,8.77851]
[1745632919648,1.5853,1808.9,1808.8,2.83851]
[1745632920151,1.5853,1808.9,1808.8,1.10513]
[1745632920453,1.58770608,1808.9,1808.8,1.10513]
[1745632921144,6.89570608,1808.9,1808.8,1.10513]
[1745632921353,8.00076608,1808.9,1808.7,2.83854]
[1745632921651,1.5853,1808.8,1808.7,1.10519]
[1745632921855,2.69047,1808.8,1808.6,8.96043]
[1745632922354,1.624,1808.7,1808.6,8.96043]
[1745632922555,2.72919,1808.7,1808.6,7.8552]
[1745632922850,1.624,1808.7,1808.6,8.17105]
[1745632923051,2.72919,1808.7,1808.6,7.0658]
[1745632923252,8.03719,1808.7,1808.6,7.0658]
[1745632923652,6.932,1808.7,1808.6,4.96325]
[1745632924852,5.308,1808.7,1808.6,1.10525]
[1745632925056,5.308,1808.7,1808.6,6.03835]
[1745632925248,0.00240608,1808.9,1808.5,3.858]
[1745632925449,1.10519,1808.7,1808.5,3.858]
[1745632925646,3.2923,1808.6,1808.5,3.858]
[1745632926139,8.6003,1808.6,1808.5,4.96331]
[1745632926853,5.308,1808.6,1808.5,9.96331]
[1745632927051,5.308,1808.6,1808.5,11.68861]
[1745632927251,0.00240608,1808.9,1808.8,1.10513]
[1745632928255,0.00240608,1808.9,1808.8,6.41313]
[1745632928457,1.60570608,1808.9,1808.8,6.41313]
[1745632929748,0.00240608,1808.9,1808.8,9.77973]
[1745632930055,0.00240608,1808.9,1808.8,13.62373]
[1745632930450,0.00240608,1808.9,1808.3,5.94]
[1745632930451,5.9713,1808.4,1807.1,11.91307]
[1745632930652,1.1058,1807.7,1807.6,1.6392]
[1745632931648,3.2078,1807.8,1807.6,1.6392]
[1745632931853,1.92041,1807.9,1807.6,1.6392]
[1745632932041,3.2078,1807.8,1807.6,1.6392]
[1745632932249,1.10556,1808.1,1807.6,1.6392]
[1745632932452,1.93021,1808.2,1807.9,1.10564]
[1745632932652,1.93021,1808.2,1808.0,1.6791]
[1745632933654,0.8247,1808.2,1808.0,2.78471]
[1745632933955,1.9302,1808.2,1808.0,1.6791]
[1745632935153,1.10555,1808.1,1808.0,1.6791]
[1745632935858,2.84985,1808.1,1808.0,1.6791]
[1745632937058,5.13802,1808.2,1808.0,1.6791]
[1745632937253,1.10555,1808.1,1808.0,1.6791]
[1745632937454,4.0325,1808.2,1808.0,2.78468]
[1745632937655,4.0325,1808.2,1808.0,2.78467]
[1745632937855,4.0325,1808.2,1808.1,1.618]
[1745632938052,5.13799,1808.2,1808.1,1.618]
[1745632938561,1.93019,1808.2,1808.1,1.618]
[1745632938756,3.2078,1808.4,1808.2,1.10549]
[1745632938958,3.2078,1808.4,1808.3,2.72343]
[1745632939162,7.63371,1808.7,1808.5,1.10528]
[1745632939364,1.6638,1808.7,1808.6,1.618]
[1745632939562,1.10515,1808.8,1808.6,1.618]
[1745632939863,1.10515,1808.8,1808.6,2.72321]
[1745632940266,1.10750608,1808.9,1808.7,1.7393]
[1745632940566,1.10513,1808.8,1808.7,1.7393]
[1745632941466,0.00240608,1808.9,1808.7,1.7393]
[1745632941858,0.00240608,1808.9,1808.8,1.10513]
[1745632942466,0.00240608,1808.9,1808.8,2.73213]
[1745632943071,0.00240608,1808.9,1808.8,10.93993]
[1745632943269,6.01252,1809.7,1808.9,2.76254]
[1745632943469,6.01252,1809.7,1809.4,1.10472]
[1745632943674,1.10471,1809.5,1809.3,4.94978]
[1745632943876,1.10476,1809.4,1809.3,3.845]
[1745632944173,1.10476,1809.4,1809.3,9.153]
[1745632944372,1.10476,1809.4,1809.3,5.308]
[1745632945173,2.80486,1809.4,1809.3,5.308]
[1745632945775,1.10498,1809.1,1809.0,3.845]
[1745632946079,1.105,1809.0,1808.9,7.0528]
[1745632946578,1.10498,1809.1,1808.9,9.82096]
[1745632946877,1.105,1809.0,1808.9,8.7159]
[1745632947180,4.31277,1809.1,1808.9,11.92112]
[1745632947984,1.105,1809.0,1808.9,10.8161]
[1745632949075,2.7972,1809.0,1808.9,6.9711]
[1745632949274,2.7972,1809.0,1808.7,3.844]
[1745632949275,1.10513,1808.8,1808.7,3.844]
[1745632949575,1.6922,1809.0,1808.7,4.94919]
[1745632949576,1.96401,1808.9,1808.7,4.94919]
[1745632949875,1.96401,1808.9,1808.8,1.6509]
[1745632950177,7.27201,1808.9,1808.8,1.6509]
[1745632950581,5.308,1808.9,1808.8,2.75603]
[1745632951074,6.41306,1808.9,1808.8,2.75603]
[1745632951376,2.78646,1808.9,1808.8,1.6509]
[1745632952477,1.10504,1809.0,1808.8,2.75597]
[1745632952777,1.10504,1809.0,1808.9,1.6712]
[1745632953971,4.31279,1809.1,1808.9,2.77624]
[1745632954372,4.31279,1809.1,1809.0,1.6712]
[1745632954580,1.10499,1809.1,1809.0,1.6712]
[1745632954880,1.10499,1809.1,1809.0,2.7762]
[1745632955071,6.41299,1809.1,1809.0,1.6712]
[1745632956674,8.02519,1809.1,1809.0,1.6712]
[1745632957275,1.10506,1808.9,1808.7,7.0518]
[1745632957478,1.10506,1808.9,1808.8,1.7304]
[1745632958177,6.41306,1808.9,1808.8,1.7304]
[1745632958381,8.02526,1808.9,1808.8,1.7304]
[1745632959077,6.41306,1808.9,1808.8,1.7304]
[1745632959284,1.10506,1808.9,1808.8,1.7304]
[1745632960881,1.10506,1808.9,1808.8,2.83553]
[1745632961091,3.2078,1809.1,1808.9,1.10506]
[1745632961278,1.10499,1809.1,1809.0,1.7345]
[1745632963087,6.41299,1809.1,1809.0,1.7345]
[1745632963287,8.15529,1809.1,1809.0,1.7345]
[1745632965185,2.76253,1809.0,1808.0,5.94]
[1745632965378,3.2078,1808.1,1807.6,4.9518]
[1745632965682,1.10604,1807.3,1807.2,0.8512]
[1745632965884,1.10617,1807.1,1807.0,3.955]
[1745632966290,3.2078,1807.3,1807.0,5.06117]
[1745632966487,3.2078,1807.3,1807.1,1.10616]
[1745632966988,3.2078,1807.3,1807.2,1.744]
[1745632967482,3.2078,1807.3,1807.2,2.8501]
[1745632967892,3.2078,1807.5,1807.4,1.10595]
[1745632968184,3.2078,1807.5,1807.2,1.744]
[1745632968185,3.2078,1807.7,1807.5,1.10589]
[1745632968389,1.5834,1807.6,1807.5,1.10589]
[1745632968983,1.6898,1808.0,1807.5,5.0]
[1745632968984,3.2078,1807.9,1807.5,5.0]
[1745632969177,3.2078,1807.9,1807.8,1.10574]
[1745632972991,3.2078,1807.9,1807.7,1.10576]
[1745632973194,3.2078,1807.9,1807.8,6.41374]
[1745632974487,3.2078,1808.1,1808.0,1.10561]
[1745632975089,3.2078,1808.1,1808.0,6.41361]
[1745632977793,3.2078,1808.1,1808.0,5.308]
[1745632977992,4.31335,1808.1,1808.0,5.308]
[1745632978294,3.2078,1808.1,1808.0,6.41361]
[1745632979481,3.2078,1808.3,1808.2,1.10549]
[1745632980295,3.2078,1808.3,1808.2,6.41349]
[1745632980890,13.27023,1808.3,1808.2,0.53738]
[1745632981085,1.10571,1807.9,1807.4,3.957]
[1745632981389,4.31351,1807.9,1807.7,1.1058]
[1745632981592,4.31351,1807.9,1807.6,1.10581]
[1745632981593,1.10575,1807.8,1807.6,1.10581]
[1745632981793,1.10575,1807.8,1807.5,6.7285]
[1745632981794,3.2078,1807.9,1807.8,1.10574]
[1745632985292,3.2078,1808.6,1807.8,14.1478]
[1745632985480,3.2078,1808.6,1807.9,10.0066]
[1745632985685,4.31338,1808.1,1808.0,0.824]
[1745632985995,3.2078,1808.1,1807.9,0.8588]
[1745632986197,1.10561,1808.0,1807.9,0.8588]
[1745632986390,4.3134,1808.1,1807.9,0.8588]
[1745632986791,3.2078,1808.1,1808.0,1.10561]
[1745632987297,3.2078,1808.1,1808.0,6.41361]
[1745632987494,3.2078,1808.1,1808.0,6.9402]
[1745632987695,3.2078,1808.1,1808.0,8.04581]
[1745632988798,6.03209,1808.4,1808.0,6.9402]
[1745632989098,6.03209,1808.4,1808.2,1.10547]
[1745632989299,6.03209,1808.4,1808.3,1.6451]
[1745632990495,1.10555,1808.2,1807.9,0.8588]
[1745632990700,4.31335,1808.2,1808.1,1.6451]
[1745632991400,1.10558,1808.1,1807.9,1.10564]
[1745632991594,4.31341,1808.0,1807.9,1.6451]
[1745632991797,3.9966,1808.0,1807.9,2.75078]
[1745632992297,3.9966,1808.0,1807.9,8.05878]
[1745632993402,4.31331,1808.2,1808.0,1.10559]
[1745632993593,4.31331,1808.2,1808.1,1.6062]
[1745632995097,3.2078,1808.2,1808.1,2.71175]
[1745632995891,4.31329,1808.2,1808.1,1.6062]
[1745632996096,4.31329,1808.2,1808.1,2.71175]
[1745632996300,3.2078,1808.2,1808.1,2.71175]
[1745632998501,1.10555,1808.1,1808.0,5.308]
[1745632998694,1.10555,1808.1,1808.0,6.9974]
[1745632998901,4.31334,1808.2,1808.0,8.10301]
[1745632999211,1.10555,1808.1,1808.0,6.9974]
[1745632999996,2.77215,1808.1,1808.0,6.9974]
[1745633000199,1.10561,1808.0,1807.7,5.6225]
[1745633000498,8.0802,1808.1,1807.9,1.10568]
[1745633000697,8.0802,1808.1,1808.0,1.6894]
[1745633000905,6.9746,1808.1,1807.7,5.6225]
[1745633001107,6.9746,1808.1,1807.5,3.2078]
[1745633001108,1.10592,1807.5,1807.4,3.944]
[1745633001310,1.10593,1807.5,1807.3,5.8761]
[1745633001505,1.10593,1807.5,1807.3,4.7701]